Cogmind - Beta 10.2 @@@ ROGUE MODE // 2020.11.03 @ 09:26:18 // Halloween2020/ForbiddenLore Player: Ty Piggbottom Result: Self-destructed Performance ------------- Evolutions (1) 500 Regions Visited (2) 400 Robots Destroyed (114) 570 Value Destroyed (1872) 1872 Prototype IDs (9) 180 Alien Tech Used (0) 0 Bonus (38) 38 TOTAL SCORE: 3560 Bonus ------- High Alert Combat Kills 38 Cogmind --------- Core Integrity 302/400 Matter 290/300 Energy 127/250 System Corruption 5% Temperature Cool (0) Movement Hovering (56) Location -9/Materials Parts ------- > --- POWER (1) -------- Ion Engine > --- PROPULSION (2) --- Airjet Airjet > --- UTILITY (3) ------ Small Storage Unit Improved Targeting Computer Hacking Suite > --- WEAPON (3) ------- Improved EM Shotgun Improved EM Shotgun Improved EM Shotgun > --- INVENTORY (6) ---- Improved Ion Engine Improved Assault Rifle Improved Assault Rifle Mini Grenade Launcher Datajack Hammer Peak State ------------ > --- POWER ------------ Improved Ion Engine > --- PROPULSION ------- Airjet Airjet > --- UTILITY ---------- Medium Storage Unit Improved Targeting Computer Hacking Suite > --- WEAPON ----------- Improved EM Shotgun Improved EM Shotgun Improved EM Shotgun > --- INVENTORY -------- Improved Assault Rifle Improved Assault Rifle Datajack Hammer [Rating: 23] Favorites ----------- Power Ion Engine Engine Ion Engine Propulsion Improved Treads Treads Improved Treads Leg Aluminum Leg Wheel Wheel Hover Unit Airjet Utility Hacking Suite Device Reclamation Unit Storage Large Storage Unit Processor Improved Targeting Computer Hackware Hacking Suite Protection Medium Armor Plating Weapon Light Cannon Energy Gun Improved EM Shotgun Ballistic Gun Improved Assault Rifle Ballistic Cannon Light Cannon Impact Weapon Hammer Build | -11 -10 -9 ------- Run | Scr Mat Mat Slots Evolved 2 | . . 2 Power . | . . . Propulsion . | . . . Utility 1 | . . 1 Weapon 1 | . . 1 Parts Attached 111 | 9 35 67 Power 9 | 1 2 6 Engine 9 | 1 2 6 Core . | . . . Reactor . | . . . Propulsion 33 | 2 17 14 Treads 17 | 2 7 8 Leg 4 | . 2 2 Wheel 10 | . 8 2 Hover 2 | . . 2 Flight . | . . . Utility 26 | 4 9 13 Device 5 | 1 1 3 Storage 11 | 2 4 5 Processor 4 | 1 2 1 Hackware 2 | . 1 1 Protection 4 | . 1 3 Artifact . | . . . Weapon 43 | 2 7 34 Energy Gun 13 | 1 . 12 Energy Cannon . | . . . Ballistic Gun 16 | 1 . 15 Ballistic Cannon 9 | . 6 3 Launcher . | . . . Special Weapon . | . . . Impact Weapon 5 | . 1 4 Slashing Weapon . | . . . Piercing Weapon . | . . . Special Melee Weapon . | . . . Unidentified Prototypes 3 | . . 3 Parts Lost 5 | . 1 4 Power . | . . . Propulsion 1 | . 1 . Utility 2 | . . 2 Weapon 2 | . . 2 Highest Loss Streak 3 | . 1 3 Average Slot Usage (%) 97 | . 98 97 Engine 12 | . 14 11 Treads 19 | . 20 18 Wheel 3 | . 5 . Storage 11 | . 11 10 Processor 5 | . 5 4 Hackware 10 | . 9 10 Protection 2 | . 1 4 Energy Gun 4 | . . 8 Ballistic Gun 10 | . . 19 Ballistic Cannon 13 | . 25 1 Impact Weapon 2 | . 1 3 Naked Turns . | . . . Heaviest Build 42 | 16 27 42 Greatest Support 46 | 40 46 46 Greatest Overweight (x) 12 | . 2 12 Average Overweight (x) . | . . . Largest Inventory Capacity 10 | 8 10 10 Average Capacity 7 | 5 6 8 Most Carried 10 | 4 6 10 Average Carried 6 | 2 4 7 Final Capacity 6 | 4 6 6 Final Carried 6 | 4 6 6 Class Distribution -------------------- 50% | Mutant 16% | Gunner 14% | Scavenger-Mutant 10% | Tank 9% | Scavenger-Tank Dominant Class ---------------- Mutant | -10/Materials Gunner | -9/Materials Resources | -11 -10 -9 ----------- Run | Scr Mat Mat Matter Collected 2854 | 338 1100 1416 Remotely . | . . . Salvage Created 3748 | 166 1072 2510 Parts 230 | 9 84 137 Haulers Intercepted 8 | . 2 6 Recyclers Shooed 4 | . 2 2 Parts Field Recycled . | . . . Retrieved Matter . | . . . Parts Self-Destructed . | . . . Prevented . | . . . Kills | -11 -10 -9 ------- Run | Scr Mat Mat Combat Hostiles Destroyed 44 | . 18 26 Melee 2 | . 2 . Guns 22 | . . 22 Cannons 19 | . 16 3 AOE 1 | . . 1 Classes Destroyed 11 | 3 6 2 Worker 19 | 1 11 7 Builder 5 | . 4 1 Tunneler 8 | 3 2 3 Hauler 8 | . 2 6 Recycler 16 | 1 5 10 Operator 6 | . 4 2 Watcher 8 | . 3 5 Swarmer 9 | . 6 3 Grunt 26 | . 12 14 Brawler 1 | . . 1 Sentry 8 | . . 8 Best Kill Streak 9 | 2 8 9 Combat Bots Only 8 | . 3 8 Max Kills in Single Turn 2 | 1 2 2 Gunslinging . | . . . Exploded 1 | . . 1 Melee 1 | . 1 . Uniques/NPCs Destroyed . | . . . Combat | -11 -10 -9 -------- Run | Scr Mat Mat Damage Taken 1766 | . 806 960 Core 253 | . 155 98 Absorbed by Shields . | . . . Core Remaining (%) 69 | 100 38 . Volleys Fired 228 | 16 104 108 Largest 3 | 2 2 3 Hottest 135 | 60 70 135 Shots Fired 521 | 32 195 294 Gun 311 | 32 . 279 Cannon 210 | . 195 15 Launcher . | . . . Special . | . . . Kinetic 443 | 16 195 232 Thermal 55 | 16 . 39 Explosive . | . . . Electromagnetic 23 | . . 23 Robot Hit Streak 16 | 8 6 16 Robot Miss Streak 4 | 3 4 4 Penetration Max . | . . . Secondary Targets 5 | . . 5 Max Gunslinging Chain 1 | . . 1 Shots Hit Robots 316 | 21 104 191 Core Hits 129 | 6 47 76 Critical Hits 7 | 1 3 3 Critical Kills 5 | . 3 2 Critical Parts Destroyed 2 | 1 . 1 Melee Attacks 11 | . 5 6 Impact 11 | . 5 6 Slashing . | . . . Piercing . | . . . Sneak Attacks 8 | . 5 3 Combat Hostiles . | . . . Follow-up Attacks . | . . . Damage Inflicted 5324 | 300 2073 2951 Guns 2801 | 300 . 2501 Cannons 1941 | . 1752 189 Explosions 54 | . . 54 Melee 506 | . 299 207 Ramming 22 | . 22 . Kinetic 4002 | 171 1752 2079 Thermal 628 | 129 . 499 Explosive . | . . . Electromagnetic 166 | . . 166 Impact 506 | . 299 207 Slashing . | . . . Piercing . | . . . Highest Corruption 5 | . . 5 Average Corruption 5 | . . 5 Corruption Purged . | . . . Effects 44 | . . 44 Message Errors 9 | . . 9 Matter Fused 9 | . . 9 Heat Flow Errors 6 | . . 6 Energy Discharges 1 | . . 1 Data Loss (minor) 3 | . . 3 Data Loss (major) 4 | . . 4 Misfires 2 | . . 2 Targeting Errors 9 | . . 9 Weapon Failures 1 | . . 1 Overload Shots . | . . . Overflow Damage 188 | . 132 56 Projectiles 39 | . 39 . Explosions . | . . . Melee 149 | . 93 56 Knockbacks 21 | . 20 1 Impact 3 | . 2 1 Kinetic 18 | . 18 . Secondary . | . . . Self-Inflicted Damage 45 | . . 45 Shots 1 | . . 1 Rammed 9 | . 9 . Targets Rammed 11 | . 11 . Kicked . | . . . Crushed 2 | . 2 . Highest Temperature 336 | . 75 336 Average Temperature 59 | . 18 85 Received Heat Transfer 648 | . 282 366 Effects 4 | . . 4 Energy Bleed 1 | . . 1 Interference 3 | . . 3 Siege Activations . | . . . Robots Corrupted . | . . . Combat Hostiles . | . . . Parts Fried 9 | . 6 3 Impact Corruptions 9 | . 5 4 Robots Melted . | . . . Combat Hostiles . | . . . Parts Melted . | . . . Heat Transferred 1262 | 300 . 962 Parts Sabotaged . | . . . Parts Stolen . | . . . Parts Stripped . | . . . Power Chain Reactions 1 | . . 1 Missiles Intercepted . | . . . Alert | -11 -10 -9 ------- Run | Scr Mat Mat Peak Influence 498 | 25 252 498 Initial 63 | . 16 63 Average 223 | 11 160 302 Maximum Alert Level 2 | . 1 2 Low Security (%) 46 | 100 67 21 Level 1 37 | . 32 45 Level 2 15 | . . 32 Level 3 . | . . . Level 4 . | . . . Level 5 . | . . . High Security . | . . . Max Security . | . . . Squads Dispatched 9 | . 6 3 Investigation 4 | . 2 2 Extermination . | . . . Reinforcement 5 | . 4 1 Assault . | . . . Garrison . | . . . Intercept . | . . . Construction Impeded . | . . . Haulers Reinforced . | . . . Stealth | -11 -10 -9 --------- Run | Scr Mat Mat Distress Signals 5 | . 2 3 Communications Jammed . | . . . Distress Signals . | . . . Times Spotted 80 | . 35 45 Peak Tracking Total 7 | . 3 7 Tactical Retreats 3 | . 2 1 Traps | -11 -10 -9 ------- Run | Scr Mat Mat Traps Triggered 4 | . 2 2 Indirectly . | . . . Trap Hack Attempts . | . . . Triggered . | . . . Disarmed 4 | . 4 . Reprogrammed . | . . . Reused . | . . . Traps Extracted . | . . . Installed . | . . . Triggered . | . . . Machines | -11 -10 -9 ---------- Run | Scr Mat Mat Machines Disabled 4 | . 3 1 Max in Single Turn 1 | . 1 1 Machines Sabotaged . | . . . Garrisons Compromised . | . . . Overloaded Fab Kills . | . . . Fab Network Shutdowns . | . . . Hacking | -11 -10 -9 --------- Run | Scr Mat Mat Machines Accessed 16 | . 5 11 Terminals 11 | . 4 7 Fabricators . | . . . Repair Stations 3 | . 1 2 Recycling Units 2 | . . 2 Scanalyzers . | . . . Garrison Access . | . . . Total Hacks 53 | . 14 39 Successful 44 | . 11 33 Failed 9 | . 3 6 Catastrophic 1 | . 1 . Database Lockouts . | . . . Manual . | . . . Terminals 34 | . 10 24 Fabricators . | . . . Repair Stations 15 | . 4 11 Recycling Units 4 | . . 4 Scanalyzers . | . . . Garrison Access . | . . . Terminal Hacks 27 | . 7 20 Record 4 | . . 4 Prototype ID Bank 5 | . . 5 Branch Access Points 1 | . . 1 Emergency Access Points 3 | . 2 1 Recycling Unit Index 1 | . . 1 Alert Level 1 | . . 1 Locate Traps 3 | . 2 1 Disarm Traps 1 | . 1 . Maintenance Status 1 | . . 1 Security Status 1 | . . 1 Transport Status 1 | . . 1 Hauler Manifests 1 | . . 1 Registered Components 2 | . 1 1 Zone Layout 2 | . 1 1 Fabricator Hacks . | . . . Repair Station Hacks 13 | . 4 9 Scan Component 7 | . 2 5 Repair 6 | . 2 4 Recycling Unit Hacks 4 | . . 4 Recycle Component 1 | . . 1 Report Inventory 3 | . . 3 Scanalyzer . | . . . Garrison Access Hacks . | . . . Unauthorized Hacks . | . . . Terminals . | . . . Fabricators . | . . . Repair Stations . | . . . Recycling Units . | . . . Scanalyzers . | . . . Garrison Access . | . . . Data Cores Recovered 1 | . . 1 Used . | . . . Hacking Detections 9 | . 3 6 Full Trace Events 2 | . . 2 Feedback Events . | . . . Feedback Blocked . | . . . Robot Schematics Acquired . | . . . Robots Built . | . . . Matter . | . . . Time . | . . . Total Robot Build Rating . | . . . Part Schematics Acquired . | . . . Parts Built . | . . . Matter . | . . . Time . | . . . Total Part Build Rating . | . . . Parts Repaired 6 | . 2 4 Time 180 | . 52 128 Parts Recycled 1 | . . 1 Recycled Matter . | . . . Retrieved Matter . | . . . Retrieved Components . | . . . Parts Scanalyzed . | . . . Part Schematics Acquired . | . . . Parts Damaged . | . . . Bothacking | -11 -10 -9 ------------ Run | Scr Mat Mat Used RIF Installer . | . . . Robots Hacked . | . . . Non-combat . | . . . Combat . | . . . Robot Hacks Applied . | . . . Relay Couplers Released . | . . . Robots Rewired . | . . . Allies Hacked . | . . . Hacks Repelled . | . . . Allies | -11 -10 -9 -------- Run | Scr Mat Mat Total Allies . | . . . Largest Group . | . . . Highest-Rated Group . | . . . Highest-Rated Ally . | . . . Total Orders . | . . . Ally Attacks . | . . . Total Damage . | . . . Kills . | . . . Allies Corrupted . | . . . Allies Melted . | . . . Intel | -11 -10 -9 ------- Run | Scr Mat Mat Robot Analysis Total . | . . . Derelict Logs Recovered . | . . . Drone Launches . | . . . Drone Recoveries . | . . . Exploration | -11 -10 -9 ------------- Run | Scr Mat Mat Turns Passed 4625 | 210 2153 2262 Spaces Moved 2513 | 92 1270 1151 Core 5 | 3 . 2 Treads 1704 | 89 737 878 Legs 90 | . 56 34 Wheels 567 | . 477 90 Hover 147 | . . 147 Flight . | . . . Fastest Speed 50 | 50 80 56 Average Speed 135 | 156 128 141 Slowest Speed 650 | 160 180 650 Overloaded Moves . | . . . Propulsion Burnouts . | . . . Robots Hopped . | . . . Cave-ins Triggered . | . . . Exploration Rate (%) 59 | 5 98 76 Regions Visited 2 Branch Regions . Pre-discovered Areas . | . . . Known Exits Taken . | . . . Unknown Exits Taken 2 | 1 1 . Scrap Searched . | . . . Spaces Dug . | . . . Terrain Destroyed 9 | . . 9 Melee . | . . . Projectile . | . . . AOE 9 | . . 9 Terrain Rammed . | . . . Walls Destroyed . | . . . Machines Disabled . | . . . Actions | -11 -10 -9 --------- Run | Scr Mat Mat Total 3258 | 124 1590 1544 Wait 234 | . 103 131 Move 2511 | 91 1269 1151 Hop . | . . . Pick Up 51 | 5 22 24 Fast Attach 50 | 8 15 27 Attach 16 | 1 7 8 Detach 21 | 1 6 14 Swap 45 | . 13 32 Drop 80 | 2 35 43 Fire 228 | 16 104 108 Melee 11 | . 5 6 Ram . | . . . Kick . | . . . Crush 11 | . 11 . Escape Stasis . | . . . Rewire . | . . . Trap . | . . . Miscellaneous . | . . . Route ------- -11/Scrapyard -10/Materials (discovered 4 exits: *Mat x3 / [*Min]) -9/Materials (discovered 3 exits: [*Mat] / *Min x2) History --------- Turn | Location | Event 9 | -11/Scrapyard | Discovered new exit (range 15) 211 | -11/Scrapyard | Entered Materials 309 | -10/Materials | Build established: Mutant 364 | -10/Materials | Discovered new exit (range 16) 732 | -10/Materials | Discovered new exit (range 3) 931 | -10/Materials | Discovered new exit (range 18) 1458 | -10/Materials | Repaired Lgt. Cannon 1486 | -10/Materials | Repaired Lgt. Cannon 1592 | -10/Materials | Core integrity fell below 50% 2165 | -10/Materials | Discovered new exit (range 15) 2320 | -10/Materials | Build established: Scavenger-Mutant 2364 | -10/Materials | Entered another Materials area 2364 | -9/Materials | Evolved 2 slots: Utility x1, Weapon x1 2561 | -9/Materials | Discovered new exit (range 11) 2688 | -9/Materials | Discovered new exit (range 11) 2725 | -9/Materials | Discovered new exit (range 16) 3087 | -9/Materials | Lost 3 parts (2u1w) 3094 | -9/Materials | Destroyed 8 combat bots 3471 | -9/Materials | Identified exit to Mines 3476 | -9/Materials | Build established: Tank 3569 | -9/Materials | Repaired Imp. Treads 3569 | -9/Materials | Repaired Med. Armor Plating 3601 | -9/Materials | Repaired Imp. Treads 3664 | -9/Materials | Repaired Imp. Treads 4100 | -9/Materials | Build established: Mutant 4610 | -9/Materials | Build established: Gunner 4626 | -9/Materials | Self-destructed Last Messages --------------- 04571_ K-01 Serf collects debris. 04573_ Acquired 10 matter. 04574_ K-01 Serf collects debris. 04578_ Dropped Med. Storage Unit. 04578_ Acquired Sml. Storage Unit. 04580_ K-01 Serf collects debris. 04585_ Acquired Lgt. Ion Engine. 04587_ LMK&QEG09LXFFW MMB:PF/JZKMBQ96 3 04588_ K-01 Serf collects debris. 04591_ Extracted 40 matter. 04592_ K-01 Serf collects debris. 04598_ Acquired Mni. Grenade Launcher. 04620_ Dropped Lgt. Ion Engine. 04626_ Connecting with Repair Station... >>Scan(Imp. EM Shotgun) Scanning Imp. EM Shotgun... Ready to Repair: Imp. EM Shotgun Rating: 2p Time: 51 Map ----- +----------------------------------------------------+ | # T # ######## # #????????????? | | # # # # # #????????????? | | =*+ # # # ##### #????????????? | | == # ###### + #???# #????????????? | | = # #????# # #???# #????????????? | | !##+#####????# # #???######????????????? | | #????????# # #?????????????????????? | | #????????########## #?????######+#+#?"????? | | #???###########???# ####### #""????? | | #???# #?### % + ?????? | | #???# """ """ #?#"" % % #??????? | | #???# """ """ #?#"" #??????? | | #???# """ """ #?#"T ] """ #??????? | | #+######??# ###"" """"" #??????? | | #??# ##"" """"" #??????? | | #??# ##### """"" #??????? | | "" #??# #???# "" ### #??????? | | """"" ########+######### [% % #?# #??????? | | """ # %% % #?# #??????? | | # ^^ ! % "T" #?# #??????? | | ###+#### [%= = #?# #??????? | | # #??#^^"""=! % ! #?# #??????? | | # #??# """=! %#######+####### #?# #??????? | | # ####!="""%! ##??# ######+##### #??????? | | # =!%[! ! #???# """ # ## #??????? | | + * !*[]% #???# "R@ # ## #??????? | | #*=[= ! [### #???# """ # %!= ## #??????? | | " ###+######## ##### = # !! ## #??????? | | " # ! ## """## # != " ## #??????? | | " # ! ##]% "## """ # T ##*#??????? | | ###[ ## % !"## """ # " ##%##?##### | | ??# ##] > ""## =""" # #[=!### ! # | | ??#! ## |"## *""" ### ####### T ! == | | ??# """ ""## "##%%*%= #?###?????# ### ! # | | ??# """ T"## """####=######????????#####?##### | | ??# """ ""### ##############??????????????????? | | ??#= #?# # !%[=![! ###?????????????????? | | ??############ +%=%= ==/ # #?????????????????? | | ####### # #!=[ *= ###?????????????????? | | + """ # # [* ##??????????????????? | | ####### """ # # # #?????????????????? | | ??????# """ =# # # #?????????????????? | | ??????# *%+ # ###?????????????????? | | ??????# * # ######%#######??????????????????? | | ##????######## # ### ###??????????????????? | | #???????????# ### ## ####????????????????????? | | #???????????# % #?#######???????????????????????? | | #???????????# #???#######?????????????????????? | | #???????????# #?? #?????????????????????? | | #??????????## ##? %#?????????????????????? | +----------------------------------------------------+ Best States ------------- Heat Dissipation 28 Energy Generation 12 Energy Capacity 265 Matter Stores 300 Matter Capacity 300 Sight Range 18 Robot Scan Range 10 Terrain Scan Range 16 Terrain Scan Density 60 Armor Coverage 225 Weapon Shielding 33 Reclamation Efficiency 10 Evasion (%) 53 Targeting Accuracy 6 Recoil Reduction 2 Offensive Hacking 10 Item Schematics ----------------- None Robot Schematics ------------------ None Fabricated ------------ Nothing Alien Tech Used ----------------- None Achievements -------------- None Challenges ------------ None Game ------ Seed ImprinterForceDoomcannon Manual? 0 Play Time 01:48:12 Cumulative 99.4 hours Start 2020.11.02 @ 23:11:51 End 2020.11.03 @ 09:26:18 Sessions 7 Manual Loads 0 Difficulty Rogue Special Mode Halloween2020/ForbiddenLore Game No. 37 Rogue 37 Adventurer 0 Explorer 0 Win Type - Total 0 Types 0/0/0/0/0/0/0/0/0 Lore% 4 Gallery% 12 Achievement% 11 Wizard Run 0 Options --------- ASCII 0 Keyboard 1 Movement Vi Keybinds 0 Fullscreen 1 Font 12/Smallcaps Map View 83x54 Tactical HUD 1 Map Filters NONE Filters NONE Steam 1 RUN: 1cc5f1a9-4f80-4e03-aae8-fbfdc9bed612